fUST/lending_fUST_20241029
["ID","MTS","AMOUNT","RATE_DAILY","PERIOD"]
[340936006,1730134234916,-640.49,0.00024657,4]
[340936007,1730134234925,-500.0,0.00024657,4]
[340936008,1730134234935,-500.0,0.00024657,4]
[340936009,1730134234944,-710.23,0.00024657,4]
[340936010,1730134234954,-502.81350965,0.00024657,4]
[340936011,1730134234963,-1057.81,0.00024657,4]
[340936012,1730134234973,-500.0,0.00024657,4]
[340936013,1730134234982,-500.0,0.00024657,4]
[340936014,1730134234992,-531.08,0.00024657,4]
[340936015,1730134235002,-385.62541215,0.00024657,4]
[340936016,1730134235011,-2136.97,0.00024657,4]
[340936017,1730134235021,-517.55,0.00024657,4]
[340936018,1730134235031,-952.03,0.00024657,4]
[340936019,1730134235041,-997.4,0.00024657,4]
[340936020,1730134235050,-500.0,0.00024657,4]
[340936021,1730134235059,-500.0,0.00024657,4]
[340936022,1730134235069,-500.0,0.00024657,4]
[340936023,1730134235079,-458.02010632,0.00024657,4]
[340936024,1730134235088,-500.0,0.00024657,4]
[340936025,1730134235098,-483.20717818,0.00024657,4]
[340936085,1730134238695,-150.0,0.00024149,2]
[340936086,1730134238705,-16.79282182,0.00024657,4]
[340936088,1730134238714,-500.0,0.00024657,4]
[340936089,1730134238723,-500.0,0.00024657,4]
[340936091,1730134238733,-2211.67,0.00024657,4]
[340936093,1730134238743,-1143.35,0.00024657,4]
[340936094,1730134238752,-500.0,0.00024657,4]
[340936096,1730134238762,-200.0,0.00024657,4]
[340936098,1730134238771,-500.0,0.00024657,4]
[340936099,1730134238780,-500.0,0.00024657,4]
[340936100,1730134238789,-737.29,0.00024657,4]
[340936101,1730134238798,-684.59,0.00024657,4]
[340936102,1730134238807,-500.0,0.00024657,4]
[340936103,1730134238816,-500.0,0.00024657,4]
[340936104,1730134238827,-150.0,0.00024658,2]
[340936105,1730134238836,-500.0,0.00024673,2]
[340936106,1730134238846,-338.82462133,0.00024673,2]
[340936107,1730134238855,-500.0,0.00024673,2]
[340936108,1730134238866,-165.853726,0.00024691,2]
[340936109,1730134238875,-165.853726,0.00024756,2]
[340936110,1730134238885,-197.711008,0.00024818,2]
[340936111,1730134238894,-165.853726,0.00024821,2]
[340936112,1730134238903,-1000.0,0.00024831,2]
[340936113,1730134238913,-165.853726,0.00024886,2]
[340936114,1730134238922,-643.94237413,0.00024919,2]
[340936115,1730134238931,-17976.3422994,0.00024921,3]
[340936116,1730134238941,-21382.0231932,0.00024921,3]
[340936117,1730134238949,-151.0,0.00024921,7]
[340936118,1730134238958,-151.0,0.00024921,7]
[340936119,1730134238968,-151.0,0.00024921,7]
[340936120,1730134238977,-151.0,0.00024921,7]
[340936121,1730134238986,-445.46363658,0.00024921,2]
[340936122,1730134238995,-500.0,0.00024921,2]
[340936123,1730134239006,-500.0,0.00024921,2]
[340936124,1730134239018,-500.0,0.00024921,2]
[340936125,1730134239028,-643.54377811,0.00024921,2]
[340936126,1730134239037,-151.0,0.00024922,7]
[340936127,1730134239046,-151.0,0.00024922,7]
[340936128,1730134239055,-242.472457,0.00024922,7]
[340936129,1730134239064,-17976.3422994,0.00024922,3]
[340936130,1730134239074,-11012.03468949,0.00024922,3]
[340936137,1730134240457,-26.45941412,0.00024657,4]
[340936158,1730134243311,-473.54058588,0.00024657,4]
[340936159,1730134243321,-1273.25941412,0.00024922,3]
[340936166,1730134246211,-474.35,0.00024921,10]
[340936167,1730134246221,-9096.72908959,0.00024922,3]
[340936168,1730134246231,-500.0,0.00024931,4]
[340936169,1730134246241,-501.31373715,0.00024931,4]
[340936170,1730134246251,-500.0,0.00024931,4]
[340936171,1730134246262,-500.0,0.00024931,4]
[340936172,1730134246273,-500.0,0.00024931,4]
[340936173,1730134246283,-502.29052032,0.00024931,4]
[340936174,1730134246293,-507.08045125,0.00024931,4]
[340936175,1730134246302,-500.0,0.00024931,4]
[340936176,1730134246312,-500.0,0.00024931,4]
[340936177,1730134246321,-500.0,0.00024931,4]
[340936179,1730134246331,-448.71609407,0.00024931,4]
[340936180,1730134246340,-500.0,0.00024931,4]
[340936181,1730134246350,-500.0,0.00024931,4]
[340936182,1730134246359,-500.0,0.00024931,4]
[340936183,1730134246368,-500.0,0.00024931,4]
[340936184,1730134246381,-500.0,0.00024931,4]
[340936185,1730134246390,-597.45,0.00024931,4]
[340936186,1730134246399,-500.0,0.00024931,4]
[340936187,1730134246409,-500.0,0.00024931,4]
[340936188,1730134246418,-500.0,0.00024931,4]
[340936189,1730134246428,-1180.67,0.00024931,4]
[340936190,1730134246438,-548.41,0.00024931,4]
[340936191,1730134246447,-500.0,0.00024931,4]
[340936192,1730134246457,-500.0,0.00024931,4]
[340936193,1730134246466,-671.18,0.00024931,4]
[340936194,1730134246476,-697.98,0.00024931,4]
[340936195,1730134246485,-500.0,0.00024931,4]
[340936196,1730134246495,-500.0,0.00024931,4]
[340936197,1730134246504,-500.0,0.00024931,4]
[340936198,1730134246513,-500.0,0.00024931,4]
[340936199,1730134246522,-1396.07,0.00024931,4]
[340936200,1730134246532,-500.0,0.00024931,4]
[340936201,1730134246541,-500.0,0.00024931,4]
[340936202,1730134246551,-518.05,0.00024931,4]
[340936203,1730134246561,-511.13,0.00024931,4]
[340936204,1730134246570,-1149.11,0.00024931,4]
[340936205,1730134246579,-500.0,0.00024931,4]
[340936206,1730134246589,-543.61,0.00024931,4]
[340936207,1730134246598,-500.0,0.00024931,4]
[340936208,1730134246607,-500.0,0.00024931,4]
[340936209,1730134246617,-500.0,0.00024931,4]
[340936210,1730134246629,-500.0,0.00024931,4]
[340936211,1730134246638,-964.55,0.00024931,4]
[340936212,1730134246647,-500.0,0.00024931,4]
[340936213,1730134246657,-500.0,0.00024931,4]
[340936214,1730134246666,-500.0,0.00024931,4]
[340936215,1730134246677,-315.30378112,0.00024931,4]
[340936216,1730134246686,-500.0,0.00024931,4]
[340936217,1730134246695,-500.0,0.00024931,4]
[340936218,1730134246705,-500.0,0.00024931,4]
[340936219,1730134246714,-615.49,0.00024931,4]
[340936220,1730134246723,-500.0,0.00024931,4]
[340936221,1730134246733,-500.0,0.00024931,4]
[340936222,1730134246742,-500.0,0.00024931,4]
[340936223,1730134246752,-500.0,0.00024931,4]
[340936224,1730134246761,-500.0,0.00024931,4]
[340936225,1730134246770,-500.0,0.00024931,4]
[340936226,1730134246780,-500.0,0.00024931,4]
[340936227,1730134246790,-151.0,0.00024931,7]
[340936228,1730134246799,-849.55,0.00024931,4]
[340936229,1730134246808,-520.09,0.00024931,4]
[340936230,1730134246818,-500.0,0.00024931,4]
[340936231,1730134246827,-500.0,0.00024931,4]
[340936232,1730134246837,-885.1,0.00024931,4]
[340936233,1730134246847,-500.0,0.00024931,4]
[340936234,1730134246856,-500.0,0.00024931,4]
[340936235,1730134246866,-500.0,0.00024931,4]
[340936236,1730134246877,-459.65629952,0.00024931,4]
[340936237,1730134246886,-500.0,0.00024931,4]
[340936238,1730134246895,-500.0,0.00024931,4]
[340936239,1730134246904,-500.0,0.00024931,4]
[340936240,1730134246914,-500.0,0.00024931,4]
[340936241,1730134246923,-500.0,0.00024931,4]
[340936242,1730134246933,-500.0,0.00024931,4]
[340936243,1730134246942,-500.0,0.00024931,4]
[340936244,1730134246951,-500.0,0.00024931,4]
[340936245,1730134246960,-500.0,0.00024931,4]
[340936246,1730134246970,-500.0,0.00024931,4]
[340936247,1730134246979,-500.0,0.00024931,4]
[340936248,1730134246989,-843.57,0.00024931,4]
[340936249,1730134246999,-835.1,0.00024931,4]
[340936250,1730134247008,-500.0,0.00024931,4]
[340936251,1730134247018,-380.55,0.00024931,4]
[340936252,1730134247027,-500.0,0.00024931,4]
[340936253,1730134247036,-556.57,0.00024931,4]
[340936254,1730134247045,-500.0,0.00024931,4]
[340936255,1730134247055,-500.0,0.00024931,4]
[340936256,1730134247064,-829.34,0.00024931,4]
[340936257,1730134247074,-500.0,0.00024931,4]
[340936258,1730134247084,-500.0,0.00024931,4]
[340936259,1730134247093,-500.0,0.00024931,4]
[340936260,1730134247103,-590.80569529,0.00024931,4]
[340936261,1730134247112,-500.0,0.00024931,4]
[340936262,1730134247121,-500.0,0.00024931,4]
[340936263,1730134247132,-500.0,0.00024931,4]
[340936264,1730134247141,-500.0,0.00024931,4]
[340936265,1730134247150,-500.0,0.00024931,4]
[340936266,1730134247159,-500.0,0.00024931,4]
[340936267,1730134247169,-574.9,0.00024931,2]
[340936268,1730134247179,-500.0,0.00024931,4]
[340936269,1730134247189,-500.0,0.00024931,4]
[340936270,1730134247199,-706.86,0.00024931,4]
[340936271,1730134247208,-500.0,0.00024931,4]
[340936272,1730134247218,-500.0,0.00024931,4]
[340936273,1730134247227,-500.0,0.00024931,4]
[340936274,1730134247237,-734.18,0.00024931,4]
[340936275,1730134247246,-637.95,0.00024931,4]
[340936276,1730134247256,-502.38613304,0.00024931,4]
[340936277,1730134247265,-500.0,0.00024931,4]
[340936278,1730134247275,-761.83,0.00024931,4]
[340936279,1730134247285,-3681.52,0.00024931,4]
[340936280,1730134247295,-683.83,0.00024931,4]
[340936281,1730134247304,-551.43,0.00024931,4]
[340936282,1730134247313,-500.0,0.00024931,4]
[340936283,1730134247322,-349.00449388,0.00024931,4]
[340936284,1730134247417,-57.4409,0.00024931,4]
[340936285,1730134321521,327.05018509,0.00036021,40]
[340936286,1730134435387,161.823937,0.00013973,2]
[340936288,1730134899777,25000.0,0.00036009,30]
[340936289,1730134932918,178.372376,0.00013973,2]
[340936291,1730135251157,-190.489477,0.0002297,2]
[340936292,1730135251182,-0.90779767,0.00023116,2]
[340936293,1730135346157,-3836.980905,0.00023039,2]
[340936294,1730135346179,-500.2316279,0.00023051,2]
[340936295,1730135346201,-2999.09220233,0.00023116,2]
[340936296,1730135346225,-300.0,0.0002328,2]
[340936297,1730135346248,-300.0,0.0002328,2]
[340936298,1730135346273,-13637.1655116,0.00023281,2]
[340936299,1730135346302,-250.0,0.00023419,2]
[340936300,1730135346325,-250.0,0.00023483,2]
[340936301,1730135346347,-250.0,0.00023547,2]
[340936302,1730135346368,-250.0,0.00023612,2]
[340936303,1730135346391,-250.0,0.00023676,2]
[340936304,1730135346412,-3836.980905,0.00023724,2]
[340936305,1730135346434,-250.0,0.0002374,2]
[340936306,1730135346456,-250.0,0.00023804,2]
[340936307,1730135346478,-250.0,0.00023868,2]
[340936308,1730135346501,-250.0,0.00023933,2]
[340936309,1730135346522,-250.0,0.00023997,2]
[340936310,1730135346545,-195.53,0.00024048,2]
[340936311,1730135346567,-185.6302275,0.00024061,2]
[340936356,1730135432454,-300.0,0.00023457,2]
[340936358,1730135432464,-300.0,0.00023457,2]
[340936360,1730135432473,-24900.0,0.00023458,2]
[340936362,1730135432484,-1145.5076343,0.00023667,2]
[340936364,1730135432493,-64.3697725,0.00024061,2]
[340936366,1730135432502,-250.0,0.00024125,2]
[340936368,1730135432511,-250.0,0.0002419,2]
[340936371,1730135432521,-161.823937,0.00024224,2]
[340936374,1730135432531,-250.0,0.00024254,2]
[340936376,1730135432540,-250.0,0.00024318,2]
[340936377,1730135432550,-250.0,0.00024382,2]
[340936379,1730135432559,-3836.980905,0.00024409,2]
[340936381,1730135432569,-250.0,0.00024446,2]
[340936383,1730135432578,-250.0,0.00024511,2]
[340936385,1730135432587,-159.0593641,0.00024557,2]
[340936387,1730135432596,-168.574,0.00024571,7]
[340936389,1730135432607,-250.0,0.00024575,2]
[340936391,1730135432616,-250.0,0.00024639,2]
[340936393,1730135432625,-1375.57985055,0.00024647,2]
[340936395,1730135432635,-195.53,0.00024647,2]
[340936397,1730135432644,-8297.71352274,0.00024647,3]
[340936399,1730135432653,-11793.3736394,0.00024647,3]
[340936401,1730135432663,-733.84,0.00024647,3]
[340936403,1730135432672,-366.92,0.00024647,3]
[340936405,1730135432681,-183.46,0.00024647,3]
[340936407,1730135432689,-550.42,0.00024647,3]
[340936409,1730135432698,-4148.85676137,0.00024648,3]
[340936411,1730135432707,-5896.6868197,0.00024648,3]
[340936413,1730135432717,-500.0,0.00024656,2]
[340936415,1730135432726,-222.827099,0.00024656,2]
[340936417,1730135432736,-500.0,0.00024656,2]
[340936418,1730135432745,-500.0,0.00024656,2]
[340936420,1730135432754,-160.64229731,0.00024656,2]
[340936422,1730135432763,-500.0,0.00024656,2]
[340936424,1730135432773,-500.0,0.00024656,2]
[340936427,1730135432783,-500.0,0.00024656,2]
[340936429,1730135432793,-503.45822223,0.00024656,2]
[340936430,1730135432802,-166.01723505,0.00024656,2]
[340936432,1730135432812,-500.0,0.00024656,2]
[340936434,1730135432821,-500.0,0.00024656,2]
[340936436,1730135432831,-500.0,0.00024656,2]
[340936438,1730135432841,-500.0,0.00024656,2]
[340936440,1730135432851,-426.30160064,0.00024656,2]
[340936442,1730135432861,-500.0,0.00024656,2]
[340936444,1730135432871,-472.2827099,0.00024656,2]
[340936446,1730135432881,-500.0,0.00024657,4]
[340936447,1730135432891,-500.0,0.00024657,4]
[340936448,1730135432900,-615.25,0.00024657,4]
[340936449,1730135432910,-500.0,0.00024657,4]
[340936450,1730135432920,-500.0,0.00024657,4]
[340936451,1730135432930,-500.0,0.00024657,4]
[340936452,1730135432939,-500.0,0.00024657,4]
[340936453,1730135432950,-500.0,0.00024657,4]
[340936454,1730135432959,-500.0,0.00024657,4]
[340936455,1730135432968,-500.0,0.00024657,4]
[340936456,1730135432977,-500.0,0.00024657,4]
[340936457,1730135432987,-500.0,0.00024657,4]
[340936458,1730135432997,-500.0,0.00024657,4]
[340936459,1730135433006,-500.0,0.00024657,4]
[340936460,1730135433015,-1082.28,0.00024657,4]
[340936461,1730135433026,-500.0,0.00024657,4]
[340936462,1730135433036,-687.05,0.00024657,4]
[340936463,1730135433045,-500.0,0.00024657,4]
[340936464,1730135433055,-542.52,0.00024657,4]
[340936465,1730135433065,-500.0,0.00024657,4]
[340936466,1730135433074,-820.79,0.00024657,4]
[340936467,1730135433084,-500.0,0.00024657,4]
[340936468,1730135433095,-500.0,0.00024657,4]
[340936469,1730135433108,-500.0,0.00024657,4]
[340936470,1730135433118,-500.0,0.00024657,4]
[340936471,1730135433128,-500.0,0.00024657,4]
[340936472,1730135433137,-506.56726671,0.00024657,4]
[340936473,1730135433148,-500.0,0.00024657,4]
[340936474,1730135433157,-500.0,0.00024657,4]
[340936475,1730135433168,-500.0,0.00024657,4]
[340936476,1730135433177,-505.64,0.00024657,4]
[340936477,1730135433187,-500.0,0.00024657,4]
[340936478,1730135433197,-526.99,0.00024657,2]
[340936479,1730135433207,-668.71,0.00024657,4]
[340936480,1730135433216,-1279.73,0.00024657,4]
[340936481,1730135433227,-505.48,0.00024657,4]
[340936482,1730135433236,-500.0,0.00024657,4]
[340936483,1730135433249,-1124.75,0.00024657,4]
[340936484,1730135433259,-500.0,0.00024657,4]
[340936485,1730135433269,-500.0,0.00024657,4]
[340936486,1730135433279,-500.0,0.00024657,4]
[340936487,1730135433290,-500.0,0.00024657,4]
[340936488,1730135433300,-884.17,0.00024657,4]
[340936489,1730135433310,-500.0,0.00024657,4]
[340936490,1730135433320,-454.08949525,0.00024657,4]
[340936491,1730135433331,-500.0,0.00024657,4]
[340936492,1730135433341,-633.23409598,0.00024657,4]
[340936493,1730135433350,-500.0,0.00024657,4]
[340936494,1730135433367,-500.0,0.00024657,4]
[340936495,1730135433377,-604.33,0.00024657,4]
[340936496,1730135433387,-570.27,0.00024657,4]
[340936497,1730135433397,-500.0,0.00024657,4]
[340936498,1730135433406,-500.0,0.00024657,4]
[340936499,1730135433415,-500.0,0.00024657,4]
[340936500,1730135433425,-500.0,0.00024657,4]
[340936501,1730135433435,-500.0,0.00024657,4]
[340936502,1730135433445,-500.0,0.00024657,4]
[340936503,1730135433454,-500.0,0.00024657,4]
[340936504,1730135433464,-175.46774613,0.00024657,4]
[340936505,1730135433475,-500.0,0.00024657,4]
[340936506,1730135433485,-500.0,0.00024657,4]
[340936507,1730135433495,-500.0,0.00024657,4]
[340936508,1730135433505,-500.0,0.00024657,4]
[340936509,1730135433515,-500.0,0.00024657,4]
[340936510,1730135433525,-500.0,0.00024657,4]
[340936511,1730135433536,-500.0,0.00024657,4]
[340936512,1730135433545,-500.0,0.00024657,4]
[340936513,1730135433555,-500.0,0.00024657,4]
[340936514,1730135433564,-500.0,0.00024657,4]
[340936515,1730135433574,-500.0,0.00024657,4]
[340936516,1730135433583,-500.0,0.00024657,4]
[340936517,1730135433592,-500.0,0.00024657,4]
[340936518,1730135433602,-502.81350965,0.00024657,4]
[340936519,1730135433615,-500.0,0.00024657,4]
[340936520,1730135433624,-385.62541215,0.00024657,4]
[340936521,1730135433633,-814.15,0.00024657,4]
[340936522,1730135433644,-500.0,0.00024657,4]
[340936523,1730135433653,-500.0,0.00024657,4]
[340936524,1730135433662,-500.0,0.00024657,4]
[340936525,1730135433671,-500.0,0.00024657,4]
[340936526,1730135433681,-517.55,0.00024657,4]
[340936527,1730135433691,-500.0,0.00024657,4]
[340936528,1730135433700,-848.22,0.00024657,4]
[340936529,1730135433709,-500.0,0.00024657,4]
[340936530,1730135433718,-500.0,0.00024657,4]
[340936531,1730135433728,-500.0,0.00024657,4]
[340936532,1730135433737,-500.0,0.00024657,4]
[340936533,1730135433747,-500.0,0.00024657,4]
[340936534,1730135433756,-500.0,0.00024657,4]
[340936535,1730135433766,-500.0,0.00024657,4]
[340936536,1730135433776,-500.0,0.00024657,4]
[340936537,1730135433785,-500.0,0.00024657,4]
[340936538,1730135433795,-509.18,0.00024657,4]
[340936539,1730135433805,-543.75677174,0.00024657,4]
[340936540,1730135433815,-500.0,0.00024657,4]
[340936541,1730135433824,-500.0,0.00024657,4]
[340936542,1730135433834,-500.0,0.00024657,4]
[340936543,1730135433844,-500.0,0.00024657,4]
[340936544,1730135433854,-500.0,0.00024657,4]
[340936545,1730135433865,-500.0,0.00024657,4]
[340936546,1730135433874,-500.0,0.00024657,4]
[340936547,1730135433883,-500.0,0.00024657,4]
[340936548,1730135433893,-500.0,0.00024657,4]
[340936549,1730135433902,-458.02010632,0.00024657,4]
[340936550,1730135433912,-800.3,0.00024657,4]
[340936551,1730135433921,-2119.52,0.00024657,4]
[340936552,1730135433930,-500.0,0.00024657,4]
[340936553,1730135433940,-794.79,0.00024657,4]
[340936554,1730135433949,-500.0,0.00024657,4]
[340936555,1730135433959,-503.02914835,0.00024657,4]
[340936556,1730135433968,-500.0,0.00024657,4]
[340936557,1730135433978,-533.38,0.00024657,4]
[340936558,1730135433987,-500.0,0.00024657,4]
[340936559,1730135433996,-500.0,0.00024657,4]
[340936560,1730135434006,-319.84621729,0.00024657,4]
[340936561,1730135434016,-656.07,0.00024657,4]
[340936562,1730135434026,-500.0,0.00024657,4]
[340936563,1730135434036,-500.0,0.00024657,4]
[340936564,1730135434046,-500.0,0.00024657,4]
[340936565,1730135434055,-500.0,0.00024657,4]
[340936566,1730135434065,-500.0,0.00024657,4]
[340936567,1730135434074,-500.0,0.00024657,4]
[340936568,1730135434084,-500.0,0.00024657,4]
[340936569,1730135434095,-500.0,0.00024657,4]
[340936570,1730135434104,-984.70064036,0.00024657,4]
[340936571,1730135434117,-437.25711345,0.00024657,4]
[340936572,1730135434127,-500.0,0.00024657,4]
[340936573,1730135434136,-501.43252782,0.00024657,4]
[340936574,1730135434146,-510.10300907,0.00024657,4]
[340936575,1730135434156,-500.0,0.00024657,4]
[340936576,1730135434165,-504.35421635,0.00024657,4]
[340936577,1730135434174,-500.0,0.00024657,4]
[340936578,1730135434183,-500.0,0.00024657,4]
[340936579,1730135434193,-500.0,0.00024657,4]
[340936580,1730135434202,-500.0,0.00024657,4]
[340936581,1730135434213,-508.97853094,0.00024657,4]
[340936582,1730135434224,-500.0,0.00024657,4]
[340936583,1730135434233,-500.0,0.00024657,4]
[340936584,1730135434245,-3528.13,0.00024657,4]
[340936585,1730135434256,-500.0,0.00024657,4]
[340936586,1730135434266,-730.09,0.00024657,4]
[340936587,1730135434276,-677.41,0.00024657,4]
[340936588,1730135434287,-500.0,0.00024657,4]
[340936589,1730135434296,-500.0,0.00024657,4]
[340936590,1730135434306,-500.0,0.00024657,4]
[340936591,1730135434316,-1390.11,0.00024657,4]
[340936592,1730135434326,-500.0,0.00024657,4]
[340936593,1730135434336,-852.39,0.00024657,4]
[340936594,1730135434345,-500.0,0.00024657,4]
[340936595,1730135434355,-500.0,0.00024657,4]
[340936596,1730135434369,-611.37,0.00024657,4]
[340936597,1730135434378,-703.59,0.00024657,4]
[340936598,1730135434388,-500.0,0.00024657,4]
[340936599,1730135434398,-747.21,0.00024657,4]
[340936600,1730135434409,-500.0,0.00024657,4]
[340936601,1730135434418,-500.0,0.00024657,4]
[340936602,1730135434428,-500.0,0.00024657,4]
[340936603,1730135434438,-1300.24,0.00024657,4]
[340936604,1730135434448,-500.0,0.00024657,4]
[340936605,1730135434457,-559.59895411,0.00024657,4]
[340936606,1730135434467,-500.0,0.00024657,4]
[340936607,1730135434477,-500.0,0.00024657,4]
[340936608,1730135434487,-500.0,0.00024657,4]
[340936609,1730135434496,-500.0,0.00024657,4]
[340936610,1730135434506,-500.0,0.00024657,4]
[340936611,1730135434515,-600.1633719,0.00024657,4]
[340936612,1730135434525,-500.0,0.00024657,4]
[340936613,1730135434534,-580.67,0.00024657,4]
[340936614,1730135434544,-859.6,0.00024657,4]
[340936615,1730135434553,-500.0,0.00024657,4]
[340936616,1730135434562,-500.0,0.00024657,4]
[340936617,1730135434572,-500.0,0.00024657,4]
[340936618,1730135434582,-206.53190926,0.00024657,4]
[340936619,1730135434591,-500.0,0.00024657,4]
[340936620,1730135434601,-567.57976511,0.00024657,4]
[340936621,1730135434612,-1057.31,0.00024657,4]
[340936622,1730135434622,-500.0,0.00024657,4]
[340936623,1730135434631,-500.0,0.00024657,4]
[340936624,1730135434640,-506.46726146,0.00024657,4]
[340936625,1730135434650,-500.0,0.00024657,4]
[340936626,1730135434659,-500.0,0.00024657,4]
[340936627,1730135434668,-1284.54,0.00024657,4]
[340936628,1730135434677,-553.32,0.00024657,4]
[340936629,1730135434687,-500.0,0.00024657,4]
[340936630,1730135434696,-2224.6,0.00024657,4]
[340936631,1730135434705,-500.0,0.00024657,4]
[340936632,1730135434714,-2136.97,0.00024657,4]
[340936633,1730135434724,-500.0,0.00024657,4]
[340936634,1730135434733,-710.23,0.00024657,4]
[340936635,1730135434743,-504.29623161,0.00024657,4]
[340936636,1730135434752,-786.41,0.00024657,4]
[340936637,1730135434762,-537.37210004,0.00024657,4]
[340936638,1730135434771,-751.63,0.00024657,4]
[340936639,1730135434781,-500.0,0.00024657,4]
[340936640,1730135434791,-4504.98,0.00024657,4]
[340936641,1730135434801,-500.0,0.00024657,4]
[340936642,1730135434810,-952.03,0.00024657,4]
[340936643,1730135434820,-1057.81,0.00024657,4]
[340936644,1730135434830,-1095.71,0.00024657,4]
[340936645,1730135434840,-531.08,0.00024657,4]
[340936646,1730135434849,-572.56,0.00024657,4]
[340936647,1730135434860,-500.0,0.00024657,4]
[340936648,1730135434870,-640.49,0.00024657,4]
[340936649,1730135434879,-500.0,0.00024657,4]
[340936650,1730135434888,-500.0,0.00024657,4]
[340936651,1730135434897,-706.57,0.00024657,4]
[340936652,1730135434907,-997.4,0.00024657,4]
[340936653,1730135434916,-500.0,0.00024657,4]
[340936654,1730135434925,-500.0,0.00024657,4]
[340936655,1730135434935,-500.0,0.00024657,4]
[340936656,1730135434944,-500.0,0.00024657,4]
[340936657,1730135434954,-500.0,0.00024657,4]
[340936658,1730135434963,-250.34825633,0.00024658,2]
[340936659,1730135434972,-500.0,0.00024658,2]
[340936660,1730135434982,-500.0,0.00024658,2]
[340936661,1730135434993,-500.0,0.00024658,2]
[340936662,1730135435003,-500.0,0.00024658,2]
[340936663,1730135435013,-500.0,0.00024658,2]
[340936664,1730135435022,-500.0,0.00024658,2]
[340936665,1730135435031,-500.0,0.00024658,2]
[340936666,1730135435041,-500.0,0.00024658,2]
[340936667,1730135435050,-500.0,0.00024658,2]
[340936668,1730135435060,-500.0,0.00024658,2]
[340936669,1730135435070,-500.0,0.00024658,2]
[340936670,1730135435079,-500.0,0.00024658,2]
[340936671,1730135435089,-500.0,0.00024658,2]
[340936672,1730135435098,-500.0,0.00024658,2]
[340936673,1730135435108,-500.0,0.00024658,2]
[340936674,1730135435117,-500.0,0.00024658,2]
[340936675,1730135435128,-500.0,0.00024658,2]
[340936676,1730135435137,-500.0,0.00024658,2]
[340936677,1730135435146,-500.0,0.00024658,2]
[340936678,1730135435156,-500.0,0.00024658,2]
[340936679,1730135435290,-500.0,0.00024658,2]
[340936680,1730135435300,-500.0,0.00024658,2]
[340936681,1730135435310,-500.0,0.00024658,2]
[340936682,1730135435319,-500.0,0.00024658,2]
[340936683,1730135435330,-500.0,0.00024658,2]
[340936684,1730135435340,-500.0,0.00024658,2]
[340936685,1730135435349,-500.0,0.00024658,2]
[340936686,1730135435359,-500.0,0.00024658,2]
[340936687,1730135435368,-500.0,0.00024658,2]
[340936688,1730135435377,-500.0,0.00024658,2]
[340936689,1730135435387,-500.0,0.00024658,2]
[340936690,1730135435397,-500.0,0.00024658,2]
[340936691,1730135435406,-500.0,0.00024658,2]
[340936692,1730135435415,-500.0,0.00024658,2]
[340936693,1730135435424,-500.0,0.00024658,2]